bitfinex/quotes_ETHUSD_20250214
["timestamp","ask_amount","ask_price","bid_price","bid_amount"]
[1739545024456,0.02749637,2725.1,2724.6,3.67022]
[1739545024762,0.8194,2725.2,2724.7,3.67]
[1739545024958,0.8194,2725.2,2724.6,3.67017]
[1739545025109,4.48887,2725.2,2724.6,3.67017]
[1739545025308,8.15844,2725.2,2724.6,3.67017]
[1739545025509,5.304694,2725.2,2724.4,3.6705]
[1739545026151,0.8143,2725.5,2724.9,3.66978]
[1739545026376,3.66933,2725.3,2724.7,3.67]
[1739545026760,3.69680637,2725.4,2724.5,3.67035]
[1739545026761,3.66963,2725.1,2724.5,3.67035]
[1739545027059,0.0075,2725.4,2724.2,0.1906231]
[1739545027060,3.67015,2724.7,2724.2,0.1489231]
[1739545027264,3.69764637,2724.7,2724.2,3.8197031]
[1739545027411,3.67015,2724.7,2724.2,3.8197031]
[1739545027925,4.72586638,2725.4,2724.2,3.8197031]
[1739545027926,4.48329,2725.6,2724.7,3.67004]
[1739545028130,3.66941,2725.3,2724.7,3.67004]
[1739545028439,3.66981,2725.0,2724.4,3.67045]
[1739545028640,3.67008,2724.8,2724.2,3.8197131]
[1739545028890,3.67008,2724.8,2724.2,3.8196431]
[1739545029218,3.67008,2724.8,2724.2,3.8196131]
[1739545029906,3.67028,2724.6,2724.2,0.1489231]
[1739545030711,3.67045,2724.5,2724.2,0.1489231]
[1739545031156,3.67057,2724.4,2724.2,0.1489231]
[1739545031361,7.49246,2724.3,2724.2,0.1489231]
[1739545031526,3.67136,2723.8,2723.3,3.67191]
[1739545031729,3.8218,2724.3,2723.1,3.67223]
[1739545031730,3.69905637,2723.7,2723.1,3.6722]
[1739545031934,0.8143,2723.6,2723.1,3.6722]
[1739545032242,0.8143,2723.6,2722.1,0.005]
[1739545032243,3.67241,2723.1,2722.1,0.005]
[1739545032443,0.04249637,2723.5,2722.5,3.67298]
[1739545032444,3.0,2723.0,2722.5,3.67298]
[1739545032610,3.0,2723.1,2722.5,3.67298]
[1739545033052,4.48681,2723.0,2722.3,3.67333]
[1739545033250,0.8143,2723.0,2722.3,3.67333]
[1739545033433,3.67256,2722.9,2722.3,3.67333]
[1739545033974,0.8143,2723.0,2722.4,3.67318]
[1739545034265,3.67264,2722.9,2722.2,3.67349]
[1739545034460,4.19783725,2722.9,2722.1,3.67858]
[1739545034762,4.19783725,2722.9,2722.1,0.005]
[1739545034763,3.0,2722.6,2722.1,0.005]
[1739545034968,6.67296,2722.6,2722.1,0.005]
[1739545035186,4.19779725,2722.9,2722.1,0.005]
[1739545035316,4.19779725,2722.9,2722.2,3.67336]
[1739545035317,3.0,2722.8,2722.2,3.67336]
[1739545035516,6.67271,2722.8,2722.2,3.67336]
[1739545035716,3.67283,2722.7,2722.1,0.005]
[1739545036333,3.67301,2722.6,2722.1,0.005]
[1739545037281,3.6731,2722.5,2722.1,0.005]
[1739545038160,6.67298,2722.6,2722.1,0.005]
[1739545038463,3.6731,2722.5,2722.1,0.005]
[1739545039157,3.82519725,2722.6,2722.1,3.67861]
[1739545039524,3.82519725,2722.6,2722.1,0.005]
[1739545039726,7.49826725,2722.6,2722.1,0.005]
[1739545039926,3.67312,2722.5,2722.1,0.005]
[1739545040270,9.50085,2723.1,2722.7,3.67282]
[1739545040271,5.821,2723.1,2722.7,3.67282]
[1739545040448,5.821,2723.1,2722.8,3.67258]
[1739545040640,5.821,2723.1,2722.9,3.67251]
[1739545040970,5.821,2723.1,2722.7,3.67272]
[1739545041270,3.6726,2722.9,2722.4,3.67322]
[1739545041626,3.6726,2722.9,2722.3,3.67325]
[1739545041627,3.0,2723.0,2722.1,0.005]
[1739545041843,6.67248,2723.0,2722.2,3.67349]
[1739545042043,3.67282,2722.7,2722.2,3.67349]
[1739545042443,3.0,2723.0,2722.1,0.005]
[1739545042644,5.821,2723.1,2722.7,3.67271]
[1739545042848,5.821,2723.1,2722.7,3.67278]
[1739545043047,5.821,2723.1,2722.7,7.34549]
[1739545043254,5.821,2723.1,2723.0,3.67242]
[1739545043848,5.821,2723.1,2722.9,3.67254]
[1739545044073,5.821,2723.1,2722.5,3.67304]
[1739545044302,3.67251,2723.0,2722.1,0.005]
[1739545044450,3.67251,2723.0,2722.5,3.59322837]
[1739545044645,5.821,2723.1,2723.0,3.67242]
[1739545045047,5.821,2723.1,2722.9,3.67254]
[1739545045048,5.821,2723.1,2722.9,7.34508]
[1739545045260,5.821,2723.1,2723.0,3.67242]
[1739545045469,5.821,2723.1,2722.9,3.67254]
[1739545045990,5.821,2723.1,2722.7,3.67274]
[1739545046158,5.821,2723.1,2722.7,7.34548]
[1739545046341,5.821,2723.1,2722.7,3.67274]
[1739545047385,5.821,2723.1,2722.8,3.67266]
[1739545047950,5.821,2723.1,2722.8,3.6726]
[1739545048248,5.821,2723.1,2722.8,3.67266]
[1739545048643,0.7738,2723.0,2722.5,3.67308]
[1739545048845,3.7738,2723.0,2722.2,3.67342]
[1739545049089,3.0,2722.7,2722.1,3.6786]
[1739545049299,0.02749637,2722.6,2722.1,3.6735]
[1739545049441,3.67267,2722.9,2722.2,3.67338]
[1739545049647,3.0,2722.7,2722.3,3.67334]
[1739545049848,3.0,2722.7,2722.2,3.67348]
[1739545050071,6.67284,2722.7,2722.2,3.67348]
[1739545050294,6.67284,2722.7,2722.2,7.3469]
[1739545050497,3.0,2722.7,2722.3,3.67335]
[1739545050797,0.7738,2723.0,2722.5,3.67302]
[1739545050798,7.44631,2723.0,2722.5,3.67302]
[1739545050999,3.67258,2722.9,2722.3,3.67325]
[1739545051359,3.67258,2722.9,2722.1,3.67356]
[1739545051360,3.67283,2722.7,2722.1,3.67356]
[1739545051566,3.67318,2722.5,2722.1,3.67362]
[1739545051883,3.67295,2722.6,2722.1,3.67362]
[1739545052281,3.0,2722.6,2721.7,3.67417]
[1739545052503,6.67297,2722.6,2722.1,3.67354]
[1739545052700,4.4469,2722.5,2722.1,3.67354]
[1739545052911,0.7738,2722.5,2722.1,3.67354]
[1739545053069,0.7738,2722.5,2721.9,3.67384]
[1739545053414,0.7738,2722.5,2721.5,0.90194456]
[1739545053415,0.7738,2722.5,2722.1,3.67352]
[1739545053711,0.7738,2722.5,2722.1,7.34704]
[1739545054014,0.7738,2722.5,2722.1,3.67352]
[1739545054228,0.7738,2722.5,2722.3,3.67336]
[1739545054393,3.0,2722.7,2722.3,3.67335]
[1739545054602,3.67305,2722.6,2722.1,3.67359]
[1739545054786,4.117735,2722.6,2722.1,3.67362]
[1739545054984,3.67334,2722.4,2721.9,3.67381]
[1739545055222,3.67359,2722.2,2721.5,0.90194456]
[1739545055552,7.34721,2722.2,2721.6,3.6743]
[1739545055732,0.84279637,2722.1,2721.5,0.1489231]
[1739545055897,3.6743,2721.6,2721.5,0.1489231]
[1739545056235,3.70179637,2721.6,2721.5,0.1489231]
[1739545056381,3.67418,2721.7,2721.5,0.1489231]
[1739545056577,3.0,2721.8,2721.5,0.1489231]
[1739545056783,3.0,2721.8,2721.5,3.8232331]
[1739545057093,4.48902,2722.1,2721.7,3.67404]
[1739545057094,0.8153,2722.1,2721.7,3.67404]
[1739545057296,0.8153,2722.5,2721.9,3.67386]
[1739545057496,0.8153,2722.5,2722.0,3.67369]
[1739545058130,3.8153,2722.5,2722.0,3.67369]
[1739545058495,3.67323,2722.4,2721.9,3.67386]
[1739545058814,0.8153,2722.5,2722.1,3.67355]
[1739545059014,7.4884,2722.5,2721.9,7.34766]
[1739545059210,7.4884,2722.5,2721.7,3.6741]
[1739545059410,0.8153,2722.5,2722.1,3.6736]
[1739545059616,4.48839,2722.5,2721.6,3.67423]
[1739545059816,4.48839,2722.5,2721.9,3.67381]
[1739545060494,3.67344,2722.3,2721.7,3.67407]
[1739545060841,3.67359,2722.2,2721.7,3.67407]
[1739545061058,3.67371,2722.1,2721.5,3.8232631]
[1739545061187,0.8153,2722.5,2721.6,3.67418]
[1739545061188,0.5575,2722.4,2721.6,3.67418]
[1739545061511,0.8153,2722.5,2721.6,3.67418]
[1739545061512,0.8153,2722.5,2722.3,3.67333]
[1739545061717,3.67271,2722.8,2722.3,3.67333]
[1739545061925,4.50565,2722.9,2722.1,3.67357]
[1739545061926,6.67283,2722.7,2722.1,3.67357]
[1739545062104,3.67316,2722.5,2721.9,3.67388]
[1739545062309,3.67286,2722.7,2721.7,0.0417]
[1739545062507,3.0,2723.0,2722.0,3.67371]
[1739545062694,3.67257,2722.9,2722.2,3.67349]
[1739545062901,3.0,2723.0,2722.2,3.67349]
[1739545063123,3.0,2722.6,2722.0,3.6737]
[1739545063291,3.67325,2722.4,2721.7,3.71586]
[1739545063489,3.67339,2722.3,2721.7,3.67416]
[1739545063799,3.67371,2722.1,2721.5,3.8232331]
[1739545064016,0.55,2722.5,2721.5,3.8232331]
[1739545064255,3.67386,2722.0,2721.5,3.8232331]
[1739545064459,3.67371,2722.1,2721.5,3.8232331]
[1739545064662,3.67357,2722.2,2721.5,0.1489231]
[1739545064971,3.67377,2722.0,2721.5,0.1489231]
[1739545065145,0.734697,2722.2,2721.5,0.1489231]
[1739545065146,3.67424,2721.7,2721.5,0.1489231]
[1739545065685,6.6743,2721.6,2721.5,0.1489231]
[1739545066420,3.0,2721.6,2721.5,0.1489231]
[1739545066620,6.6743,2721.6,2721.5,0.1489231]
[1739545067079,7.21338625,2721.6,2721.5,0.1489231]
[1739545067224,3.53908625,2721.6,2721.5,0.1489231]
[1739545067416,7.21338625,2721.6,2721.5,0.1489231]
[1739545067951,3.53908625,2721.6,2721.5,0.1489231]
[1739545068156,3.0,2721.6,2721.5,0.1489231]
[1739545068969,3.67372,2722.1,2721.6,3.6743]
[1739545069219,0.833,2722.4,2721.5,0.1489231]
[1739545069365,0.833,2722.4,2721.9,3.67377]
[1739545069567,3.833,2722.4,2722.0,3.67375]
[1739545069792,0.833,2722.4,2722.0,3.67375]
[1739545070069,3.67303,2722.6,2722.0,3.71538]
[1739545070481,3.67303,2722.6,2722.1,3.67356]
[1739545070719,3.67303,2722.6,2722.0,3.71538]
[1739545071017,3.0,2722.7,2722.0,3.7154]
[1739545071218,3.0,2722.7,2722.2,3.67341]
[1739545071524,3.67296,2722.6,2722.0,7.38904]
[1739545071908,3.67311,2722.5,2722.0,3.71534]
[1739545072220,6.67289,2722.7,2722.1,3.67356]
[1739545072428,3.0,2722.7,2722.6,0.5]
[1739545072571,6.6729,2722.7,2722.6,0.5]
[1739545073219,3.0,2722.7,2722.6,0.5]
[1739545074924,5.825,2722.8,2722.6,0.5]
[1739545075082,5.825,2722.8,2722.6,4.17293]
[1739545075626,5.825,2722.8,2722.6,0.5]
[1739545076131,5.825,2722.8,2722.6,4.17289]
[1739545076338,5.825,2722.8,2722.6,0.5]
[1739545076495,5.825,2722.8,2722.7,3.67282]
[1739545076835,5.825,2722.8,2722.6,4.17288]
[1739545077039,5.825,2722.8,2722.6,0.5]
[1739545078019,5.825,2722.8,2722.6,4.17286]
[1739545078239,5.825,2722.8,2722.6,0.5]
[1739545078930,3.67257,2722.9,2722.6,0.5]
[1739545079144,3.0,2723.0,2722.6,0.5]
[1739545079340,6.67245,2723.0,2722.6,0.5]
[1739545080183,0.02749637,2722.9,2722.6,0.5]
[1739545080409,3.67223,2723.2,2722.6,0.5]
[1739545080636,0.7908,2723.3,2722.7,3.67282]
[1739545080784,0.7908,2723.3,2722.6,0.5]
[1739545080990,7.909153,2723.3,2722.8,3.67255]
[1739545082236,4.237073,2723.3,2722.7,3.67282]
[1739545082588,7.909093,2723.3,2722.8,3.6726]
[1739545082996,1.237073,2723.3,2723.0,3.6723]
[1739545083242,4.909093,2723.3,2722.8,3.67261]
[1739545083539,4.46282,2723.3,2722.8,3.67261]
[1739545084091,0.7908,2723.3,2722.9,3.67249]
[1739545084339,0.7539,2723.6,2723.3,3.67194]
[1739545084497,0.7539,2723.6,2723.0,3.67235]
[1739545084705,3.67185,2723.5,2723.0,3.67235]
[1739545084966,4.42551,2723.6,2723.0,3.67234]
[1739545085163,5.825,2723.7,2723.4,3.67185]
[1739545085303,0.8189,2724.6,2723.9,3.6711]
[1739545085709,0.0075,2724.5,2723.9,3.6711]
[1739545085951,0.0075,2724.5,2723.4,3.71355]
[1739545085952,3.678,2724.5,2723.7,3.6714]
[1739545086156,0.44969,2724.4,2723.7,3.6714]
[1739545086322,0.44969,2724.4,2723.7,3.67139]
[1739545086505,0.44969,2724.4,2723.9,3.67118]
[1739545086702,0.44969,2724.4,2723.9,3.67111]
[1739545087096,3.44969,2724.4,2723.7,3.67137]
[1739545087363,4.382672,2724.3,2723.5,3.67164]
[1739545087519,3.0,2724.1,2723.4,3.67186]
[1739545087720,3.0,2724.2,2723.5,3.67172]
[1739545088235,3.0,2724.2,2723.6,3.67148]
[1739545088441,0.55,2724.5,2723.5,3.67165]
[1739545088757,3.67075,2724.3,2723.6,3.6716]
[1739545088958,0.667075,2724.2,2723.6,3.67161]
[1739545089297,3.0,2724.2,2723.1,3.71395]
[1739545089459,3.0,2724.2,2723.5,3.67164]
[1739545089770,3.67073,2724.3,2723.5,3.67164]
[1739545089924,3.67088,2724.2,2723.5,3.67164]
[1739545090126,0.367088,2724.1,2723.5,3.67164]
[1739545090314,3.0,2724.2,2723.5,7.3433]
[1739545090506,0.8189,2724.1,2723.3,3.67189]
[1739545090708,3.67111,2724.0,2723.3,3.67189]
[1739545091146,0.8189,2724.1,2723.2,3.67207]
[1739545091323,3.8189,2723.7,2722.9,3.67253]
[1739545091673,3.8189,2723.7,2722.4,5.25]
[1739545091674,3.0,2723.5,2722.6,0.5]
[1739545091868,3.67181,2723.5,2722.8,3.6726]
[1739545092088,0.8189,2724.1,2724.0,3.67107]
[1739545092231,0.48290507,2725.4,2723.2,3.67215]
[1739545092232,0.8189,2724.9,2723.7,8.02846098]
[1739545092417,3.66914,2725.5,2724.7,3.67001]
[1739545092418,0.8189,2725.3,2724.7,3.67001]
[1739545092623,0.8189,2725.3,2724.8,3.66998]
[1739545093164,0.8189,2725.3,2724.9,3.66981]
[1739545093375,3.66885,2725.7,2724.4,3.67047]
[1739545093376,0.8189,2725.7,2725.1,3.66959]
[1739545093669,0.8189,2725.7,2724.6,3.67026]
[1739545093963,3.66892,2725.6,2724.4,3.67049]
[1739545094113,3.02749637,2725.1,2724.6,3.67025]
[1739545094314,3.0,2725.1,2724.7,3.67008]
[1739545094572,3.0,2725.1,2724.8,3.66998]
[1739545094863,3.0,2725.1,2724.7,3.67003]
[1739545095172,3.0,2725.1,2724.6,3.67025]
[1739545095316,0.8189,2725.7,2725.0,3.66965]
[1739545095551,3.0,2725.6,2725.0,3.66965]
[1739545095715,6.66893,2725.6,2724.6,7.34035]
[1739545096045,6.66893,2725.6,2724.0,8.7917]
[1739545096046,4.48872,2725.0,2724.0,8.7917]
[1739545096362,6.66987,2724.9,2724.1,3.67083]
[1739545096563,3.0,2724.6,2723.9,3.67111]
[1739545096725,7.34002564,2724.6,2723.9,3.67111]
[1739545097520,7.34002564,2724.6,2724.0,3.67104]
[1739545097740,0.66976564,2724.6,2724.3,3.67064]
[1739545098064,4.23488,2724.9,2724.2,3.6707]
[1739545098268,0.8189,2725.0,2723.8,3.67134]
[1739545098443,3.66994,2724.9,2724.2,3.67068]
[1739545098622,3.0,2724.8,2724.2,3.67068]
[1739545098817,0.8189,2725.0,2724.3,3.67054]
[1739545099018,0.38189,2724.9,2724.3,3.67054]
[1739545099276,0.38189,2724.9,2724.4,3.67052]
[1739545099579,0.8189,2725.0,2724.4,3.67052]
[1739545100418,4.4887,2725.0,2724.2,7.34146]
[1739545100613,4.4887,2725.0,2724.2,3.67072]
[1739545100963,4.4887,2725.0,2724.3,3.67066]
[1739545101165,4.48864,2725.0,2724.3,3.67066]
[1739545101374,0.8189,2725.0,2724.4,3.67041]
[1739545101661,4.48864,2725.0,2724.4,3.67041]
[1739545101847,0.8189,2725.0,2723.9,3.67116]
[1739545102245,3.0,2725.1,2724.1,0.0417]
[1739545102471,5.824,2725.2,2725.0,3.66963]
[1739545102673,5.824,2725.2,2725.1,3.66959]
[1739545103454,5.824,2725.2,2724.8,3.66993]
[1739545103668,5.824,2725.2,2724.9,3.66975]
[1739545103973,5.824,2725.2,2725.0,3.66971]
[1739545104139,5.824,2725.2,2724.9,3.66975]
[1739545104352,5.824,2725.2,2724.7,3.67009]
[1739545104545,5.824,2725.2,2724.8,3.66991]
[1739545104743,5.824,2725.2,2724.7,3.67011]
[1739545104940,5.824,2725.2,2724.8,3.66998]
[1739545105278,4.45819,2725.0,2724.2,3.67069]
[1739545105445,3.66997,2724.9,2724.3,3.67061]
[1739545105825,3.7884,2725.0,2724.5,3.67033]
[1739545106052,0.7884,2725.0,2724.5,3.67033]
[1739545106783,0.7884,2725.0,2724.3,7.34115]
[1739545106925,4.45819,2725.0,2724.3,3.67057]
[1739545107126,0.7884,2725.0,2724.3,3.67057]
[1739545107372,3.66986,2724.9,2724.3,3.67057]
[1739545107580,4.45812,2725.0,2724.3,3.67057]
[1739545107729,4.45812,2725.0,2724.4,3.67044]
[1739545108077,4.45812,2725.0,2723.9,3.71288]
[1739545108078,3.66988,2724.9,2724.1,3.67084]
[1739545108275,3.66988,2724.9,2723.9,0.0417]
[1739545108572,3.66988,2724.9,2724.3,3.67057]
[1739545108932,3.67019,2724.7,2724.1,3.67084]
[1739545109134,0.7884,2724.4,2723.9,3.67111]
[1739545109682,0.7884,2724.4,2723.5,0.0417]
[1739545109881,0.7884,2724.4,2723.9,3.67111]
[1739545110173,3.67068,2724.3,2723.8,3.67132]
[1739545110522,3.67069,2724.3,2723.7,3.67147]
[1739545110728,3.67069,2724.3,2723.7,3.67136]
[1739545111159,3.69830637,2724.2,2723.5,3.67171]
[1739545111363,3.67081,2724.2,2723.6,3.67159]
[1739545111569,3.67094,2724.1,2723.6,3.67159]
[1739545111877,7.34173,2724.2,2723.6,3.67159]
[1739545112096,4.338579,2724.2,2723.4,3.67175]
[1739545112386,3.67096,2724.1,2723.6,3.67152]
[1739545113096,0.667769,2724.2,2723.6,3.67152]
[1739545113228,4.338639,2724.2,2723.7,3.67146]
[1739545113423,0.667769,2724.2,2723.7,3.67137]
[1739545113681,4.338619,2724.2,2723.7,3.67137]
[1739545114082,3.671,2724.1,2723.5,3.67164]
[1739545114372,3.671,2724.1,2723.6,3.67153]
[1739545115046,3.67095,2724.1,2723.6,3.67159]
[1739545115208,3.667769,2724.2,2723.2,0.0417]
[1739545115399,7.338669,2724.2,2723.6,3.67153]
[1739545116143,7.338669,2724.2,2723.7,3.67144]
[1739545116345,3.67094,2724.1,2723.5,3.67161]
[1739545116708,3.67094,2724.1,2723.2,4.1536841]
[1739545116709,3.67108,2724.0,2723.3,3.67193]
[1739545116909,3.67108,2724.0,2723.4,3.67175]
[1739545116910,4.27709425,2724.0,2723.4,3.67175]
[1739545117178,3.6715,2723.7,2723.2,3.67207]
[1739545117459,4.45336,2723.8,2723.2,3.67214]
[1739545117654,3.0,2723.7,2723.2,3.6721]
[1739545117850,6.67148,2723.7,2723.2,3.6721]
[1739545118049,3.67161,2723.6,2723.0,3.67229]
[1739545118215,3.0,2723.7,2723.2,3.67206]
[1739545118548,6.67158,2723.7,2723.2,3.67206]
[1739545119115,3.67161,2723.6,2723.2,3.67206]
[1739545119519,3.67161,2723.6,2723.1,3.67228]
[1739545120045,3.67161,2723.6,2722.8,0.0417]
[1739545120046,0.7819,2723.8,2722.8,4.39874098]
[1739545120367,0.7819,2723.8,2723.4,3.6718]
[1739545120649,0.7819,2723.8,2723.2,7.34411]
[1739545120650,6.67152,2723.7,2723.2,7.34411]
[1739545121285,6.67152,2723.7,2723.1,3.67221]
[1739545121286,3.67169,2723.6,2723.1,3.67221]
[1739545121408,3.67174,2723.5,2723.0,3.67237]
[1739545121749,3.69923637,2723.5,2723.0,3.67237]
[1739545121990,3.67174,2723.5,2723.0,3.67233]
[1739545122149,3.67169,2723.6,2723.0,3.67233]
[1739545122334,3.67175,2723.5,2723.1,3.67225]
[1739545122532,3.67147,2723.7,2723.0,3.67233]
[1739545122760,0.7819,2723.8,2723.0,3.67233]
[1739545123051,3.67156,2723.7,2722.7,3.67281]
[1739545123352,3.67156,2723.7,2723.2,3.67207]
[1739545123353,7.34312,2723.7,2723.2,3.67207]
[1739545123522,3.67161,2723.6,2723.2,3.67207]
[1739545123724,4.45333,2723.8,2723.1,3.67221]
[1739545124058,3.67163,2723.6,2723.0,3.67241]
[1739545124207,3.67175,2723.5,2723.1,3.67227]
[1739545124723,3.67151,2723.7,2723.3,3.67199]
[1739545124933,3.67151,2723.7,2723.1,3.67227]
[1739545125139,3.67151,2723.7,2723.2,3.67208]
[1739545125637,3.67168,2723.6,2723.1,3.67227]
[1739545125851,3.67179,2723.5,2723.1,3.67227]
[1739545126079,3.67188,2723.4,2722.9,3.67246]
[1739545126367,3.67206,2723.3,2722.9,3.67246]
[1739545126723,0.52264094,2723.6,2722.8,3.67265]
[1739545126724,3.67221,2723.2,2722.8,3.67265]
[1739545126922,3.67203,2723.3,2722.9,3.67254]
[1739545127220,3.67203,2723.3,2722.7,3.6728]
[1739545127221,3.67223,2723.2,2722.7,3.6728]
[1739545127453,0.7583,2723.1,2722.7,3.6728]
[1739545127824,4.43059,2723.1,2722.6,4.17295]
[1739545128230,3.67249,2723.0,2722.6,0.5]
[1739545128437,3.67269,2722.8,2722.6,0.5]
[1739545128667,3.70031637,2722.7,2722.6,0.5]
[1739545128827,7.43112,2722.7,2722.6,0.5]
[1739545129346,3.7583,2722.7,2722.6,0.5]
[1739545129524,0.7583,2722.7,2722.6,0.5]
[1739545129726,3.0,2722.8,2722.6,0.5]
[1739545130383,0.7583,2723.0,2722.6,0.5]
[1739545130544,3.67217,2723.2,2722.6,0.5]
[1739545130741,3.67217,2723.2,2722.7,3.67275]
[1739545130943,3.67234,2723.1,2722.6,0.5]
[1739545131177,0.8216,2723.3,2722.6,0.92147]
[1739545131473,3.67257,2722.9,2722.6,0.5]
[1739545132265,7.34471,2723.1,2722.6,4.17294]
[1739545132467,3.67248,2723.0,2722.6,0.5]
[1739545132845,3.67235,2723.1,2722.6,4.17283]
[1739545133469,3.67243,2723.0,2722.6,0.5]
[1739545133753,3.67235,2723.1,2722.6,0.5]
[1739545133953,0.8216,2723.7,2723.4,3.67185]
[1739545134170,3.67128,2723.9,2723.2,3.67211]
[1739545134382,3.0,2723.7,2723.2,3.67211]
[1739545134551,3.67147,2723.7,2723.1,3.67218]
[1739545134755,3.67147,2723.7,2723.0,3.67234]
[1739545134983,3.0,2723.8,2723.4,3.67176]
[1739545135183,3.0,2723.8,2723.2,3.67208]
[1739545135605,3.67148,2723.7,2723.2,3.67208]
[1739545136010,3.67148,2723.7,2723.2,3.67207]
[1739545136304,3.67148,2723.7,2723.1,3.6722]
[1739545136505,3.67148,2723.7,2723.0,3.67233]
[1739545136506,3.67171,2723.6,2723.0,3.67233]
[1739545136804,3.67148,2723.7,2723.2,3.67213]
[1739545137398,7.34304,2723.7,2723.2,3.67213]
[1739545137568,3.67162,2723.6,2723.1,3.67228]
[1739545137966,3.67148,2723.7,2723.0,3.67233]
[1739545138170,4.338628,2723.7,2723.1,3.67228]
[1739545138814,6.67168,2723.6,2723.1,3.67228]
[1739545140205,3.0,2723.6,2723.1,3.67228]
[1739545141008,6.67163,2723.6,2723.1,3.67228]
[1739545141472,6.67163,2723.6,2723.2,3.6721]
[1739545141473,3.0,2723.6,2723.2,3.6721]
[1739545142368,3.0,2723.6,2723.2,3.67215]
[1739545142759,6.67161,2723.6,2723.2,3.67215]
[1739545143811,6.67161,2723.6,2723.0,3.67241]
[1739545144010,6.67161,2723.6,2723.1,3.67225]
[1739545144514,6.67163,2723.6,2723.2,3.67214]
[1739545145016,3.0,2723.6,2723.2,3.67206]
[1739545145216,3.0,2723.6,2723.4,3.67187]
[1739545145420,3.6714,2723.8,2723.4,3.67187]
[1739545145557,3.0,2723.6,2723.3,3.67199]
[1739545145912,0.8216,2724.0,2723.3,0.734424]
[1739545146113,9.49295,2724.1,2723.7,3.67144]
[1739545146409,9.49295,2724.1,2723.6,3.67153]
[1739545146566,9.49295,2724.1,2723.4,0.0417]
[1739545146567,5.822,2724.1,2723.4,0.07841641]
[1739545146766,5.822,2724.1,2724.0,3.67107]
[1739545146966,5.822,2724.1,2723.9,3.67108]
[1739545147278,5.822,2724.1,2723.8,3.6713]
[1739545147478,5.822,2724.1,2724.0,3.67107]
[1739545148393,5.822,2724.1,2723.9,3.67118]
[1739545148611,5.822,2724.1,2724.0,3.71277]
[1739545148967,5.822,2724.1,2723.5,8.7917]
[1739545149305,5.822,2724.1,2723.1,0.0417]
[1739545149464,5.822,2724.1,2723.3,3.67194]
[1739545149663,3.6713,2723.9,2723.3,3.67194]
[1739545150010,3.67131,2723.9,2723.3,3.67194]
[1739545150313,9.49304,2724.1,2723.6,3.6716]
[1739545150519,5.822,2724.1,2723.6,3.67154]
[1739545150815,9.49294,2724.1,2723.6,3.67154]
[1739545151910,5.822,2724.1,2723.8,0.0417]
[1739545152069,5.822,2724.1,2723.9,3.67108]
[1739545152282,5.822,2724.1,2723.8,3.71302]
[1739545152822,5.822,2724.1,2723.8,7.38434]
[1739545153128,5.822,2724.1,2723.8,4.5248874]
[1739545153276,5.822,2724.1,2724.0,3.67107]
[1739545153477,5.822,2724.1,2723.9,3.67119]
[1739545153794,5.822,2724.1,2723.9,3.67113]
[1739545153996,5.822,2724.1,2724.0,3.67107]
[1739545155525,5.822,2724.1,2723.9,3.67108]
[1739545155927,5.822,2724.1,2724.0,3.67107]
[1739545157836,9.49294,2724.1,2723.6,3.67153]
[1739545158037,9.49294,2724.1,2723.5,3.67169]
[1739545158038,5.822,2724.1,2723.7,3.67145]
[1739545158337,5.822,2724.1,2723.5,3.67169]
[1739545158536,3.69857637,2724.0,2723.4,0.0417]
[1739545158740,3.6712,2723.9,2723.1,0.0417]
[1739545158891,3.67177,2723.5,2723.0,3.67234]
[1739545159680,3.67177,2723.5,2722.9,7.34489]
[1739545159843,3.0,2723.6,2723.0,0.03671996]
[1739545160205,6.67167,2723.6,2723.0,3.67232]
[1739545160402,6.67167,2723.6,2723.1,3.67228]
[1739545161033,3.0,2723.6,2723.2,3.67212]
[1739545161591,6.67161,2723.6,2723.0,3.70902993]
[1739545161793,4.48449,2723.9,2723.2,3.67205]
[1739545162140,3.0,2723.6,2723.2,3.67205]
[1739545162708,6.67168,2723.6,2723.0,3.67231]
[1739545163122,6.67168,2723.6,2723.1,3.67225]
[1739545163739,3.0,2723.6,2723.2,3.67212]
[1739545164111,3.67134,2723.8,2723.3,3.67191]
[1739545164321,3.0,2723.7,2723.3,3.67191]
[1739545164628,3.67134,2723.8,2723.3,3.67191]
[1739545164854,0.8132,2723.9,2723.3,3.67191]
[1739545164855,0.8132,2723.9,2723.3,0.734412]
[1739545165075,5.822,2724.1,2723.3,0.734412]
[1739545165076,9.49296,2724.1,2723.6,3.67156]
[1739545165483,3.67117,2724.0,2723.3,3.71359]
[1739545165662,5.822,2724.1,2723.5,3.67173]
[1739545165824,3.67114,2724.0,2723.5,3.67173]
[1739545166024,3.67128,2723.9,2723.3,3.67189]
[1739545166267,3.67128,2723.9,2723.4,3.67186]
[1739545166576,0.734242,2723.9,2723.3,3.67189]
[1739545166776,0.8318,2724.2,2723.3,3.67189]
[1739545167088,3.67121,2723.9,2723.3,3.67189]
[1739545167373,0.8318,2723.6,2723.1,3.67219]
[1739545167521,3.67174,2723.5,2723.0,3.67241]
[1739545168173,3.67188,2723.4,2723.0,3.67241]
[1739545168340,3.67215,2723.2,2722.6,4.21459]
[1739545168676,3.67235,2723.1,2722.6,4.17289]